Cogmind - Beta 12 X1 @@@ ROGUE MODE // 2022.07.26 @ 21:04:26 Player: kasaphescent Result: Destroyed by S-43 Plague with Heavy Machine Gun Performance ------------- Evolutions (8) 4000 Regions Visited (22) 4400 Robots Destroyed (265) 1325 Value Destroyed (12193) 12193 Prototype IDs (36) 720 Alien Tech Used (0) 0 Bonus (7884) 7884 TOTAL SCORE: 30522 Bonus ------- Triggered Max Security 1000 High Alert Combat Kills 1444 Follower Combat Kills 1285 Entered Garrisons 1400 Used RIF Installer 2500 Aligned with FarCom 300 Friendly Fire -45 Cogmind --------- Core Integrity 0/1450 Matter 274/300 Energy 189/190 System Corruption 8% Temperature Cool (2) Movement Flying (32) Location -2/Testing Parts ------- > --- POWER (2) -------- Light Quantum Reactor > --- PROPULSION (8) --- Electron Diverter Electron Diverter > --- UTILITY (10) ----- Relay Coupler [Grunt] (25) Relay Coupler [Brawler] (29) Relay Coupler [Demolisher] (24) > --- WEAPON (3) ------- (None) > --- INVENTORY (5) ---- Reinforced Antimatter Reactor Matter Neutralizer Enhanced Nova Cannon KE Penetrator Improved Remote Datajack Peak State ------------ > --- POWER ------------ Light Nuclear Core Particle Reactor > --- PROPULSION ------- Antigrav Array Antigrav Array Antigrav Array Antigrav Array > --- UTILITY ---------- Advanced Heat Sink Advanced Heat Sink Advanced Heat Sink Improved Coolant Injector High-capacity Storage Unit Improved Target Analyzer Core Analyzer Improved Phase Shifter Improved Hacking Suite Relay Coupler [Sentry] > --- WEAPON ----------- Dispersion Rifle KE Penetrator Tiamat Missile Launcher > --- INVENTORY -------- Quantum Reactor Improved Treads Armored Medium Treads Armored Heavy Treads Improved Linear Gravjet Antigrav Array Antigrav Array Antigrav Array High-capacity Storage Unit Huge Storage Unit Plasma Rifle Long-range Proton Cannon Compact HERF Cannon Improved Remote Datajack Power Sword [Rating: 154] Favorites ----------- Power Cooled Ion Engine Engine Cooled Ion Engine Power Core Light Nuclear Core Reactor Particle Reactor Propulsion Armored Wheel Treads Armored Treads Leg Flexi-carbon Leg Wheel Armored Wheel Hover Unit Antigrav Array Flight Unit Advanced Surge Thruster Utility Advanced Heat Sink Device Advanced Heat Sink Storage Cargo Storage Unit Processor Advanced Targeting Computer Hackware Relay Coupler [Swarmer] Protection Improved Core Shielding Weapon Spear Energy Gun Gatling Laser Energy Cannon Heavy Plasma Cannon Ballistic Gun Heavy Machine Gun Ballistic Cannon Slug Cannon Launcher Tiamat Missile Launcher Special Weapon Remote Datajack Impact Weapon Heavy Mace Slashing Weapon Great Axe Piercing Weapon Spear Build | -11 -10 -9 -9 -9 -8 -8 -8 -8 -7 -7 -7 -7 -6 -6 -5 -4 -4 -3 -3 -2 -2 -2 ------- Run | Scr Mat Mat Min Exi Min Mat Gar Mat Fac Gar Fac Gar Fac Gar Fac Fac Gar Res Gar Res Gar Tes Slots Evolved 16 | . . 2 . . . 2 . . 2 . . . 2 . 2 2 . 2 . 2 . . Power 1 | . . . . . . . . . . . . . . . . . . 1 . . . . Propulsion 6 | . . 1 . . . . . . 1 . . . . . . 1 . 1 . 2 . . Utility 8 | . . . . . . 2 . . 1 . . . 2 . 2 1 . . . . . . Weapon 1 | . . 1 . . . . . . . . . . . . . . . . . . . . Parts Attached 427 | 6 7 5 2 2 1 17 31 15 17 36 39 30 21 28 39 5 63 12 2 24 19 6 Power 40 | 1 1 1 . . . . 1 1 2 8 3 2 1 2 3 . 6 1 1 2 2 2 Engine 17 | 1 1 1 . . . . 1 . 1 6 2 1 . 1 1 . . . . . 1 . Core 9 | . . . . . . . . 1 1 2 . . . 1 2 . 2 . . . . . Reactor 14 | . . . . . . . . . . . 1 1 1 . . . 4 1 1 2 1 2 Propulsion 112 | 2 3 1 1 . . 2 7 8 4 9 7 9 2 6 16 . 15 5 . 9 2 4 Treads 36 | 1 1 . 1 . . 1 2 4 4 5 . . 2 4 5 . 3 1 . 1 1 . Leg 13 | . . . . . . . . . . . . . . . 4 . 8 1 . . . . Wheel 41 | 1 2 1 . . . 1 5 4 . 4 5 9 . 2 7 . . . . . . . Hover 19 | . . . . . . . . . . . 2 . . . . . 4 3 . 7 1 2 Flight 3 | . . . . . . . . . . . . . . . . . . . . 1 . 2 Utility 115 | 1 3 . . . . 6 3 2 8 16 12 4 9 8 7 . 20 3 . 5 8 . Device 49 | . 1 . . . . 2 2 . 3 5 6 1 1 4 3 . 13 3 . 2 3 . Storage 9 | 1 2 . . . . 1 . 1 . 1 . . . . 2 . 1 . . . . . Processor 14 | . . . . . . 1 . 1 3 1 2 1 2 . 1 . 1 . . 1 . . Hackware 18 | . . . . . . . . . 1 1 2 1 3 3 1 . 1 . . 1 4 . Protection 25 | . . . . . . 2 1 . 1 8 2 1 3 1 . . 4 . . 1 1 . Artifact . | . . . . . . . . . . . . . . . . . . . . . . . Weapon 160 | 2 . 3 1 2 1 9 20 4 3 3 17 15 9 12 13 5 22 3 1 8 7 . Energy Gun 54 | . . 1 . . . 6 12 1 . 1 7 5 . . 4 2 13 1 . . 1 . Energy Cannon 12 | . . 1 . 2 . . . . . . . . . 2 3 . 1 . . 1 2 . Ballistic Gun 36 | 2 . 1 1 . 1 1 . . . . 4 5 5 5 2 3 4 1 . 1 . . Ballistic Cannon 8 | . . . . . . . 1 1 . . . . . 2 3 . . . . . 1 . Launcher 13 | . . . . . . . 4 1 . . 1 . . . . . 1 . 1 4 1 . Special Weapon 9 | . . . . . . . . . . . 1 2 2 1 . . 1 . . . 2 . Impact Weapon 1 | . . . . . . . . 1 . . . . . . . . . . . . . . Slashing Weapon 21 | . . . . . . 2 3 . . . 3 3 2 2 1 . 2 1 . 2 . . Piercing Weapon 6 | . . . . . . . . . 3 2 1 . . . . . . . . . . . Special Melee Weapon . | . . . . . . . . . . . . . . . . . . . . . . . Unidentified Prototypes 13 | . . 2 . . . 4 . . . 1 . . 1 . . . 1 . . 2 . 2 Parts Lost 162 | . 2 . 2 . . . 10 11 2 7 10 4 3 17 25 5 30 . 2 24 8 . Power 18 | . 1 . . . . . 1 1 . 3 1 1 . 1 1 1 3 . 1 3 . . Propulsion 64 | . 1 . 1 . . . 6 5 2 1 6 . . 3 14 2 10 . . 9 4 . Utility 43 | . . . . . . . 1 1 . 3 1 1 2 8 5 . 9 . 1 8 3 . Weapon 37 | . . . 1 . . . 2 4 . . 2 2 1 5 5 2 8 . . 4 1 . Highest Loss Streak 18 | . 2 . 1 . . . 3 7 2 2 4 2 1 9 12 3 6 . 2 18 8 . To Critical Strikes 2 | . . . . . . . . . . . . . . . 1 . 1 . . . . . Average Slot Usage (%) 85 | . 94 100 100 100 100 99 99 87 83 73 85 90 92 91 94 60 75 85 81 69 40 19 Engine 4 | . 14 11 11 11 11 9 9 4 1 6 4 3 . 1 . . . . . . 2 . Core 1 | . . . . . . . . 3 4 . . . . . 4 4 . 4 4 2 . . Reactor 1 | . . . . . . . . . . . 2 3 5 3 . . 3 3 4 4 3 . Treads 8 | . 14 11 11 11 11 9 9 11 29 14 . . 12 19 7 5 4 1 . . 6 . Wheel 12 | . 14 22 22 22 22 18 17 14 . 4 25 30 13 6 11 11 . . . . . . Hover 1 | . . . . . . . . . . . 1 . . . . . 3 3 14 15 . 1 Device 10 | . 9 11 11 11 11 9 16 7 6 5 11 9 2 5 11 5 21 20 25 15 9 . Storage 6 | . 14 11 11 11 11 9 9 7 . 6 7 7 6 4 4 5 2 4 4 3 . . Processor 6 | . . . . . . 8 9 7 10 3 6 4 7 12 9 5 9 9 9 8 . . Hackware 4 | . . . . . . . . . 1 1 1 . 13 10 14 10 4 4 4 6 3 13 Protection 4 | . . . . . . 8 1 7 3 11 1 7 8 4 4 . 3 3 . . . . Energy Gun 6 | . . . . . . 11 23 14 . . 3 9 . . 3 2 7 3 4 2 3 . Energy Cannon 1 | . . 11 11 11 11 3 . . . . . . . 1 3 2 . . . . 2 . Ballistic Gun 6 | . 28 22 22 22 22 11 . . . . 11 9 15 10 4 6 4 3 4 2 . . Slashing Weapon 1 | . . . . . . . 2 . . . 2 1 3 1 1 . 1 3 1 2 . . Piercing Weapon 2 | . . . . . . . . . 22 16 2 . . . . . . . . . . . Naked Turns 3 | . . . . . . . . 2 . . . . . . . . . . . 1 . . Heaviest Build 182 | 14 50 56 57 64 59 64 72 112 26 169 178 182 176 175 118 111 100 101 89 91 85 15 Greatest Support 162 | 20 16 26 26 26 26 26 44 38 86 162 56 56 48 90 70 32 110 85 78 104 90 26 Greatest Overweight (x) 10 | . 3 2 2 2 2 3 3 10 . 6 7 3 7 6 10 7 7 2 1 1 8 . Average Overweight (x) 2 | . . 2 2 2 2 2 1 2 . 1 3 3 6 2 3 3 1 . . . . . Largest Inventory Capacity 30 | 8 20 20 20 20 20 20 20 25 5 30 30 30 30 30 25 25 25 20 20 20 5 5 Average Capacity 22 | 7 10 20 20 20 20 20 20 21 5 29 30 30 30 22 23 25 13 20 20 19 5 5 Most Carried 30 | 6 13 15 20 20 20 20 20 25 5 30 30 30 30 30 18 14 15 20 20 20 5 5 Average Carried 18 | 3 9 12 17 19 19 19 18 18 4 24 28 29 29 20 10 13 8 15 19 17 3 4 Final Capacity 30 | 8 20 20 20 20 20 20 20 5 5 30 30 30 30 5 25 25 20 20 20 5 5 5 Final Carried 30 | 6 13 14 20 20 20 19 18 5 5 30 30 29 30 5 12 14 14 20 20 4 5 5 Class Distribution -------------------- 20% | Scavenger-Mutant 15% | Bothacker-Mutant 14% | Skirmisher 14% | Mutant 12% | Bothacker-Skirmisher 7% | Hauler-Mutant 6% | Scavenger-Gunner 3% | Gunner Dominant Class ---------------- Mutant | -10/Materials Gunner | -9/Materials Gunner | -9/Mines Gunner | -9/Exiles Skirmisher | -8/Mines Skirmisher | -8/Materials Skirmisher | -8/Garrison Skirmisher | -8/Materials Mutant | -7/Factory Hauler-Mutant | -7/Garrison Bothacker-Mutant | -7/Factory Bothacker-Skirmisher | -7/Garrison Bothacker-Mutant | -6/Factory Bothacker-Mutant | -6/Garrison Scavenger-Mutant | -5/Factory Scavenger-Skirmisher | -4/Factory Scavenger-Mutant | -4/Garrison Scavenger-Mutant | -3/Research Scavenger-Mutant | -3/Garrison Scavenger-Mutant | -2/Research Scavenger-Mutant | -2/Garrison Mutant | -2/Testing Resources | -11 -10 -9 -9 -9 -8 -8 -8 -8 -7 -7 -7 -7 -6 -6 -5 -4 -4 -3 -3 -2 -2 -2 ----------- Run | Scr Mat Mat Min Exi Min Mat Gar Mat Fac Gar Fac Gar Fac Gar Fac Fac Gar Res Gar Res Gar Tes Matter Collected 8271 | 243 527 150 199 20 31 296 379 306 189 431 795 555 774 762 873 95 936 50 . 150 470 40 Remotely . | . . . . . . . . . . . . . . . . . . . . . . . Salvage Created 14526 | . 694 . 221 . 43 550 1792 572 274 2575 1007 1623 968 624 1389 95 1343 86 39 352 279 . Parts 668 | . 45 . 12 . 4 38 76 25 18 97 54 55 33 14 79 12 52 3 10 35 6 . Haulers Intercepted 8 | . 2 . . . . 3 . 2 . . . . . . . . . 1 . . . . Recyclers Shooed 6 | . . . 1 . . . . 1 . . . . 3 . 1 . . . . . . . Parts Field Recycled . | . . . . . . . . . . . . . . . . . . . . . . . Retrieved Matter . | . . . . . . . . . . . . . . . . . . . . . . . Parts Self-Destructed . | . . . . . . . . . . . . . . . . . . . . . . . Prevented . | . . . . . . . . . . . . . . . . . . . . . . . Kills | -11 -10 -9 -9 -9 -8 -8 -8 -8 -7 -7 -7 -7 -6 -6 -5 -4 -4 -3 -3 -2 -2 -2 ------- Run | Scr Mat Mat Min Exi Min Mat Gar Mat Fac Gar Fac Gar Fac Gar Fac Fac Gar Res Gar Res Gar Tes Combat Hostiles Destroyed 248 | . 10 . 5 . 1 7 36 13 5 28 13 14 11 34 27 4 18 . 4 17 1 . Melee 39 | . . . . . . . . . 5 23 1 . . 3 . . 6 . . 1 . . Guns 146 | . 10 . 3 . 1 6 27 10 . 5 10 14 11 16 16 4 11 . . 2 . . Cannons 33 | . . . 2 . . . . 3 . . . . . 15 11 . 1 . . . 1 . AOE 28 | . . . . . . 1 8 . . . 1 . . . . . . . 4 14 . . Classes Destroyed 19 | . 4 . 1 . 1 3 2 3 1 2 1 . . 1 . . . . . . . . Worker 20 | . 5 . . . . 1 . . . . 2 . 5 . 4 . . . . 3 . . Builder 3 | . . . . . . 1 . . . . . . . . 1 . . . . 1 . . Tunneler 1 | . . . . . . . . . . . 1 . . . . . . . . . . . Hauler 8 | . 2 . . . . 3 . 2 . . . . . . . . . 1 . . . . Recycler 7 | . . . . . . . . 1 . . 3 . 2 . 1 . . . . . . . Operator 3 | . . . . . . 2 . . . . 1 . . . . . . . . . . . Watcher 5 | . 1 . . . . . . . . . 1 1 1 . 1 . . . . . . . Swarmer 45 | . . . . . . . 11 4 . . 1 5 1 3 6 4 . . . 9 1 . Cutter 13 | . . . . . . . . . . 2 . . . . . . . . 4 7 . . Saboteur 1 | . . . . . . . . . . 1 . . . . . . . . . . . . Grunt 79 | . 10 . 4 . . 1 14 4 . 17 1 1 5 . 12 . 10 . . . . . Brawler 4 | . . . 1 . . . . 1 . . 1 . 1 . . . . . . . . . Duelist 7 | . . . . . . . . 1 . . 2 1 2 . 1 . . . . . . . Protector 1 | . . . . . . . . 1 . . . . . . . . . . . . . . Sentry 35 | . . . . . . 4 8 . 2 5 4 6 1 . 1 . 4 . . . . . Hunter 15 | . . . . . 1 2 2 2 1 2 1 1 . . 3 . . . . . . . Programmer 15 | . . . . . . . . . 2 1 3 . 1 . 4 . 3 . . 1 . . Behemoth 3 | . . . . . . . 1 . . . . . . 1 . . 1 . . . . . Assembled 30 | . . . . . . . . . . . . . . 30 . . . . . . . . Best Kill Streak 11 | . 3 . 3 . 1 5 5 3 1 3 3 4 5 11 6 4 4 1 4 8 1 . Combat Bots Only 11 | . 2 . 3 . 1 2 5 3 1 3 2 4 4 11 5 4 4 . 4 7 1 . Max Kills in Single Turn 5 | . 2 . 1 . 1 2 2 2 1 1 1 2 2 1 2 2 1 1 2 5 1 . Gunslinging 1 | . . . . . . . 1 . . . . . . . . 1 . . . . . . Exploded 5 | . . . . . . 1 2 . . . 1 . . . . . . . 2 5 . . Melee 1 | . . . . . . . . . 1 1 1 . . 1 . . 1 . . 1 . . Uniques/NPCs Destroyed . | . . . . . . . . . . . . . . . . . . . . . . . Combat | -11 -10 -9 -9 -9 -8 -8 -8 -8 -7 -7 -7 -7 -6 -6 -5 -4 -4 -3 -3 -2 -2 -2 -------- Run | Scr Mat Mat Min Exi Min Mat Gar Mat Fac Gar Fac Gar Fac Gar Fac Fac Gar Res Gar Res Gar Tes Damage Taken 26492 | . 509 . 150 . 93 422 1259 1640 385 2481 1569 871 1570 2313 2813 573 3511 . 533 3946 1720 134 Core 3667 | . 106 . 12 . 13 69 241 210 46 273 164 88 155 113 310 73 285 . 37 688 712 72 Absorbed by Shields 142 | . . . . . . . 99 . . . . . . 18 . . . . . . 25 . Redirected to Shielding 253 | . . . . . . . . . . 22 13 . 35 26 92 . . . . 65 . . Core Remaining (%) 63 | 100 57 . . . 93 . . 5 . . . 18 . 68 69 . 68 . 97 . . . Volleys Fired 668 | . 50 . 13 . 3 28 75 41 . . 58 41 49 86 94 4 64 . 2 8 52 . Largest 3 | . 2 . 3 . 3 3 3 3 . . 3 3 3 3 3 2 3 . 1 2 1 . Hottest 250 | . 40 . 103 . 103 179 225 218 . . 240 240 90 125 242 169 250 . 46 121 105 . Shots Fired 1466 | . 100 . 39 . 9 70 177 100 . 10 146 104 132 147 213 8 147 . 2 11 51 . Gun 1150 | . 100 . 26 . 6 61 162 67 . 10 142 99 129 68 117 8 135 . . 6 14 . Cannon 265 | . . . 13 . 3 9 5 31 . . . . . 62 96 . 11 . . . 35 . Launcher 21 | . . . . . . . 10 2 . . 2 . . . . . . . 2 5 . . Special 30 | . . . . . . . . . . . 2 5 3 17 . . 1 . . . 2 . Kinetic 789 | . 100 . 26 . 6 34 5 31 . . 105 51 129 88 132 . 79 . . 3 . . Thermal 615 | . . . 13 . 3 36 162 67 . 10 37 48 . 42 81 8 56 . . 3 49 . Explosive 9 | . . . . . . . . . . . 2 . . . . . . . 2 5 . . Electromagnetic 23 | . . . . . . . 10 2 . . . . . . . . 11 . . . . . Robot Hit Streak 41 | . 10 . 5 . 9 18 23 19 . 6 17 15 19 16 41 2 9 . . 4 13 . Robot Miss Streak 6 | . 4 . 4 . . 3 3 3 . 6 5 5 3 5 5 2 5 . . 2 1 . Penetration Max 1 | . . . . . . 1 . . . . 1 . 1 1 1 . . . . . . . Secondary Targets 13 | . . . . . . . 5 1 . . . 1 2 1 . 1 2 . . . . . Max Gunslinging Chain 2 | . . . . . . . 2 1 . . . 1 1 1 . 1 1 . . . . . Capacitor 35 | . . . . . . . . . . . . . . . . . . . . . 35 . Autonomous 25 | . . . . . . . . . . 20 5 . . . . . . . . . . . Shots Hit Robots 1221 | . 61 . 20 . 8 50 136 64 16 115 108 135 100 95 151 4 114 2 . 11 31 . Core Hits 609 | . 30 . 9 . 3 20 63 29 9 62 49 62 42 51 71 4 55 1 6 31 12 . Critical Kills 5 | . . . . . . . . 1 . . . . . . 2 . . . . 1 1 . Critical Parts Destroyed 8 | . . . . . . . . 1 . . . . . 1 2 . 4 . . . . . Critical Strikes 60 | . . . . . . 1 13 11 . 7 . 4 . 1 5 . 15 . . 1 2 . Burn 23 | . . . . . . 1 10 9 . . . . . . . . 2 . . . 1 . Meltdown 1 | . . . . . . . . . . . . . . . . . . . . . 1 . Destroy 13 | . . . . . . . 1 2 . . . . . 1 4 . 4 . . 1 . . Blast 1 | . . . . . . . . . . . . . . . 1 . . . . . . . Corrupt 2 | . . . . . . . . . . . . . . . . . 2 . . . . . Sever 13 | . . . . . . . 2 . . . . 4 . . . . 7 . . . . . Impale 7 | . . . . . . . . . . 7 . . . . . . . . . . . . Melee Attacks 339 | . . . . . . 2 31 3 23 143 6 50 7 6 9 . 32 4 . 23 . . Impact 3 | . . . . . . . . 3 . . . . . . . . . . . . . . Slashing 167 | . . . . . . 2 31 . . . 3 50 7 6 9 . 32 4 . 23 . . Piercing 169 | . . . . . . . . . 23 143 3 . . . . . . . . . . . Sneak Attacks 16 | . . . . . . . . . 4 . 1 . . . . . 8 1 . 2 . . Combat Hostiles 10 | . . . . . . . . . 2 . . . . . . . 8 . . . . . Follow-up Attacks 27 | . . . . . . . . . 4 22 1 . . . . . . . . . . . Damage Inflicted 36097 | . 801 . 332 . 108 963 4069 1769 581 4407 2537 4370 2428 2514 4030 98 3245 127 480 2195 1043 . Guns 16215 | . 801 . 174 . 55 704 2021 865 . 333 2294 1759 2358 902 1980 98 1596 . . 77 198 . Cannons 5229 | . . . 158 . 53 124 173 627 . . . . . 1158 1919 . 172 . . . 845 . Explosions 3738 | . . . . . . 135 621 277 . . 167 . 70 . 131 . 55 . 480 1802 . . Melee 10852 | . . . . . . . 1254 . 581 4050 76 2611 . 415 . . 1422 127 . 316 . . Ramming 63 | . . . . . . . . . . 24 . . . 39 . . . . . . . . Kinetic 10734 | . 801 . 174 . 55 284 173 627 . . 1414 711 2358 1228 2108 . 778 . . 23 . . Thermal 10728 | . . . 158 . 53 679 2021 865 . 333 880 1048 . 832 1791 98 873 . . 54 1043 . Explosive 2505 | . . . . . . . . . . . 167 . . . 56 . . . 480 1802 . . Electromagnetic 1215 | . . . . . . . 621 277 . . . . 70 . 75 . 172 . . . . . Impact . | . . . . . . . . . . . . . . . . . . . . . . . Slashing 6179 | . . . . . . . 1254 . . . 34 2611 . 415 . . 1422 127 . 316 . . Piercing 4673 | . . . . . . . . . 581 4050 42 . . . . . . . . . . . Highest Corruption 8 | . . . . . . . 1 1 3 4 6 6 2 6 3 . 2 . . 8 8 8 Average Corruption 3 | . . . . . . . 1 1 2 3 4 6 1 2 2 . 1 . . 5 8 8 Corruption Purged 5 | . . . . . . . . . . . 5 . . . . . . . . . . . Corruption Blocked . | . . . . . . . . . . . . . . . . . . . . . . . Effects 222 | . . . . . . . 14 6 5 47 25 38 11 19 5 . 15 . . 7 27 3 Message Errors 53 | . . . . . . . 3 2 1 12 6 7 2 3 2 . 4 . . 2 8 1 Matter Fused 56 | . . . . . . . 4 2 2 11 5 8 2 9 3 . 2 . . 2 5 1 Heat Flow Errors 29 | . . . . . . . 2 . . 9 2 6 2 2 . . 1 . . 2 3 . Energy Discharges 26 | . . . . . . . 2 1 1 3 4 5 . 1 . . 4 . . . 4 1 Parts Rejected 5 | . . . . . . . . . . 2 1 2 . . . . . . . . . . Data Loss (minor) 34 | . . . . . . . 2 . . 9 4 8 2 3 . . 1 . . . 5 . Data Loss (major) 13 | . . . . . . . 1 . 1 1 3 2 1 1 . . 2 . . 1 . . Misfires 2 | . . . . . . . . . . . . . 1 . . . 1 . . . . . Alerts 1 | . . . . . . . . . . . . . . . . . . . . . 1 . Weapon Failures 3 | . . . . . . . . 1 . . . . 1 . . . . . . . 1 . Overload Shots . | . . . . . . . . . . . . . . . . . . . . . . . Overflow Damage 664 | . . . . . . 8 74 7 44 36 . 140 . 68 28 . 63 8 25 163 . . Projectiles 73 | . . . . . . 8 . 4 . . . . . 33 28 . . . . . . . Explosions 203 | . . . . . . . 12 3 . . . . . . . . . . 25 163 . . Melee 388 | . . . . . . . 62 . 44 36 . 140 . 35 . . 63 8 . . . . Knockbacks 27 | . . . . . . . . 6 . . . . . 5 16 . . . . . . . Impact . | . . . . . . . . . . . . . . . . . . . . . . . Kinetic 23 | . . . . . . . . 5 . . . . . 5 13 . . . . . . . Secondary 4 | . . . . . . . . 1 . . . . . . 3 . . . . . . . Self-Inflicted Damage 276 | . . . . . . 55 . . . . . . . . 14 . . . 64 143 . . Shots 5 | . . . . . . 1 . . . . . . . . 1 . . . 1 2 . . Rammed 7 | . . . . . . . . . . 2 . . . 5 . . . . . . . . Targets Rammed 10 | . . . . . . . . . . 2 . . . 8 . . . . . . . . Kicked . | . . . . . . . . . . . . . . . . . . . . . . . Crushed 3 | . . . . . . . . . . . . . . 3 . . . . . . . . Highest Temperature 418 | . 2 . 9 . . 153 231 245 . 418 196 235 185 237 198 132 196 . . 250 356 . Average Temperature 80 | . 2 . 3 . . 66 63 102 . 115 48 58 48 71 78 55 95 . . 63 112 . Received Heat Transfer 5134 | . 291 . 87 . . 90 399 450 36 1008 159 204 382 410 492 105 637 . 9 207 141 27 Effects 3 | . . . . . . . . 1 . 1 . . . . . . . . . . 1 . Shutdowns 1 | . . . . . . . . . . 1 . . . . . . . . . . . . Energy Bleed 2 | . . . . . . . . 1 . . . . . . . . . . . . 1 . Siege Activations 1 | . . . . . . . . . . . . . . . . . . . . . 1 . Total Turns 2 | . . . . . . . . . . . . . . . . . . . . . 2 . Longest Duration 2 | . . . . . . . . . . . . . . . . . . . . . 2 . Robots Corrupted . | . . . . . . . . . . . . . . . . . . . . . . . Combat Hostiles . | . . . . . . . . . . . . . . . . . . . . . . . Parts Fried 4 | . . . . . . . 3 . . . . . . . . . 1 . . . . . Impact Corruptions . | . . . . . . . . . . . . . . . . . . . . . . . Robots Melted 3 | . . . . . . . 1 . . . 1 . . . . . . . . . 1 . Combat Hostiles 2 | . . . . . . . 1 . . . 1 . . . . . . . . . . . Parts Melted 39 | . . . . . 1 1 11 5 . . 4 3 . . 8 . 4 . . . 2 . Heat Transferred 21057 | . . . 333 . 111 1284 5098 2926 . 300 1550 2091 . 1300 3059 148 1493 . . 74 1290 . Parts Sabotaged 6 | . . . . . . . . . . 6 . . . . . . . . . . . . Parts Stolen . | . . . . . . . . . . . . . . . . . . . . . . . Parts Stripped . | . . . . . . . . . . . . . . . . . . . . . . . Power Chain Reactions 3 | . . . . . . . 1 . . . . . 1 . . . 1 . . . . . Missiles Intercepted . | . . . . . . . . . . . . . . . . . . . . . . . Alert | -11 -10 -9 -9 -9 -8 -8 -8 -8 -7 -7 -7 -7 -6 -6 -5 -4 -4 -3 -3 -2 -2 -2 ------- Run | Scr Mat Mat Min Exi Min Mat Gar Mat Fac Gar Fac Gar Fac Gar Fac Fac Gar Res Gar Res Gar Tes Peak Influence 1640 | . 290 85 133 . 30 245 1301 836 259 1086 617 1336 754 665 453 266 468 284 377 686 593 1640 Initial 701 | . . 70 33 . . 11 80 633 221 45 569 294 701 375 225 191 172 263 213 211 351 312 Average 426 | . 112 80 91 . 28 88 702 697 170 579 421 648 550 475 176 222 300 276 251 379 448 1589 Maximum Alert Level 5 | . 1 . . . . 1 4 3 1 3 2 4 3 2 2 1 2 1 1 2 2 5 Low Security (%) 19 | 100 75 100 100 . 100 87 3 . 41 15 . . . . 56 42 12 . . . . . Level 1 34 | . 24 . . . . 12 36 . 58 17 38 23 12 19 40 57 67 100 100 61 49 1 Level 2 30 | . . . . . . . 16 36 . 25 61 50 53 80 3 . 20 . . 38 50 . Level 3 11 | . . . . . . . 22 63 . 40 . 4 33 . . . . . . . . . Level 4 3 | . . . . . . . 21 . . . . 21 . . . . . . . . . . Level 5 . | . . . . . . . . . . . . . . . . . . . . . . . High Security . | . . . . . . . . . . . . . . . . . . . . . . . Max Security . | . . . . . . . . . . . . . . . . . . . . . . 98 Squads Dispatched 32 | . 2 . . . . 1 . 8 2 . 6 . 4 . 4 1 . . . 4 . . Investigation 6 | . 1 . . . . 1 . 1 . . 2 . . . . 1 . . . . . . Extermination 9 | . . . . . . . . . 2 . 3 . 1 . 2 . . . . 1 . . Reinforcement 13 | . 1 . . . . . . 6 . . 1 . . . 2 . . . . 3 . . Assault 4 | . . . . . . . . 1 . . . . 3 . . . . . . . . . Garrison . | . . . . . . . . . . . . . . . . . . . . . . . Intercept . | . . . . . . . . . . . . . . . . . . . . . . . Searches Triggered 1 | . . . . . . . . . . . . . . . . . . . . 1 . . Construction Impeded 4 | . . . . . . . . 1 . . 1 . . . 2 . . . . . . . Haulers Reinforced . | . . . . . . . . . . . . . . . . . . . . . . . Active Scanning Responses . | . . . . . . . . . . . . . . . . . . . . . . . Cargo Convoy Interrupts . | . . . . . . . . . . . . . . . . . . . . . . . Stealth | -11 -10 -9 -9 -9 -8 -8 -8 -8 -7 -7 -7 -7 -6 -6 -5 -4 -4 -3 -3 -2 -2 -2 --------- Run | Scr Mat Mat Min Exi Min Mat Gar Mat Fac Gar Fac Gar Fac Gar Fac Fac Gar Res Gar Res Gar Tes Distress Signals 12 | . 1 . . . . 2 . 3 1 . . . 1 . . . . . . 3 . 1 Communications Jammed . | . . . . . . . . . . . . . . . . . . . . . . . Distress Signals . | . . . . . . . . . . . . . . . . . . . . . . . Times Spotted 498 | . 16 2 5 . 1 17 40 36 11 35 19 30 26 90 30 9 26 1 15 46 32 11 Peak Tracking Total 24 | . 5 2 3 . 1 6 5 10 5 8 3 9 6 11 5 5 4 1 14 18 24 7 Tactical Retreats 42 | . 2 . . . . 1 5 7 . . . 1 1 5 2 . 7 . 1 8 1 1 Traps | -11 -10 -9 -9 -9 -8 -8 -8 -8 -7 -7 -7 -7 -6 -6 -5 -4 -4 -3 -3 -2 -2 -2 ------- Run | Scr Mat Mat Min Exi Min Mat Gar Mat Fac Gar Fac Gar Fac Gar Fac Fac Gar Res Gar Res Gar Tes Traps Triggered 39 | . 1 . . . . . 12 . 1 6 5 6 1 2 1 . 1 . . 2 1 . Indirectly . | . . . . . . . . . . . . . . . . . . . . . . . Trap Hack Attempts . | . . . . . . . . . . . . . . . . . . . . . . . Triggered . | . . . . . . . . . . . . . . . . . . . . . . . Disarmed . | . . . . . . . . . . . . . . . . . . . . . . . Reprogrammed . | . . . . . . . . . . . . . . . . . . . . . . . Reused . | . . . . . . . . . . . . . . . . . . . . . . . Traps Extracted . | . . . . . . . . . . . . . . . . . . . . . . . Installed . | . . . . . . . . . . . . . . . . . . . . . . . Triggered 1 | . . . . . . . . . . . . . 1 . . . . . . . . . Machines | -11 -10 -9 -9 -9 -8 -8 -8 -8 -7 -7 -7 -7 -6 -6 -5 -4 -4 -3 -3 -2 -2 -2 ---------- Run | Scr Mat Mat Min Exi Min Mat Gar Mat Fac Gar Fac Gar Fac Gar Fac Fac Gar Res Gar Res Gar Tes Machines Disabled 34 | . . . . . . 3 1 1 . 3 2 4 7 1 5 . 2 . . 1 4 . Max in Single Turn 5 | . . . . . . 2 1 1 . 1 1 2 5 1 2 . 1 . . 1 1 . Garrison Relay 8 | . . . . . . . 1 . . 3 . 1 . 1 . . 1 . . . 1 . Phase Generator 2 | . . . . . . . . . . . . 1 . . . . 1 . . . . . Machines Sabotaged . | . . . . . . . . . . . . . . . . . . . . . . . Garrisons Compromised . | . . . . . . . . . . . . . . . . . . . . . . . Overloaded Fab Kills . | . . . . . . . . . . . . . . . . . . . . . . . Hacking | -11 -10 -9 -9 -9 -8 -8 -8 -8 -7 -7 -7 -7 -6 -6 -5 -4 -4 -3 -3 -2 -2 -2 --------- Run | Scr Mat Mat Min Exi Min Mat Gar Mat Fac Gar Fac Gar Fac Gar Fac Fac Gar Res Gar Res Gar Tes Machines Accessed 63 | . 4 1 1 2 . 7 3 5 4 4 8 2 6 . 6 2 1 3 . 3 1 . Terminals 42 | . 4 1 . . . 5 3 5 2 4 5 2 2 . 3 . 1 2 . 2 1 . Fabricators 9 | . . . . . . . . . 1 . 2 . 3 . 2 1 . . . . . . Repair Stations 1 | . . . . . . 1 . . . . . . . . . . . . . . . . Recycling Units 1 | . . . . . . . . . . . . . . . 1 . . . . . . . Scanalyzers . | . . . . . . . . . . . . . . . . . . . . . . . Garrison Access 7 | . . . . . . 1 . . 1 . 1 . 1 . . 1 . 1 . 1 . . Total Hacks 135 | . 12 2 1 2 . 18 5 14 8 6 19 4 14 . 11 3 1 6 . 7 2 . Successful 64 | . 6 1 1 2 . 9 3 5 6 4 4 . 7 . 7 1 1 4 . 2 1 . Failed 71 | . 6 1 . . . 9 2 9 2 2 15 4 7 . 4 2 . 2 . 5 1 . Catastrophic 23 | . 1 . . . . 3 . 4 1 1 5 1 3 . 1 1 . . . 1 1 . Database Lockouts . | . . . . . . . . . . . . . . . . . . . . . . . Manual 74 | . 5 . . 1 . 13 . 11 6 . 11 . 12 . 7 . . 4 . 4 . . Terminals 101 | . 12 2 . . . 15 5 14 5 6 10 4 9 . 5 . 1 5 . 6 2 . Fabricators 19 | . . . . . . . . . 2 . 8 . 4 . 3 2 . . . . . . Repair Stations 2 | . . . . . . 2 . . . . . . . . . . . . . . . . Recycling Units 3 | . . . . . . . . . . . . . . . 3 . . . . . . . Scanalyzers . | . . . . . . . . . . . . . . . . . . . . . . . Garrison Access 7 | . . . . . . 1 . . 1 . 1 . 1 . . 1 . 1 . 1 . . Terminal Hacks 26 | . 4 1 1 2 . 2 3 2 2 4 . . 3 . . . 1 . . . 1 . Record 1 | . . . . 1 . . . . . . . . . . . . . . . . . . Open Door 3 | . . . 1 . . . 1 . . 1 . . . . . . . . . . . . Branch Access Points 2 | . 1 . . . . 1 . . . . . . . . . . . . . . . . Emergency Access Points 6 | . 2 . . . . . 1 . . 1 . . . . . . 1 . . . 1 . Garrison Index 2 | . . . . . . 1 . . 1 . . . . . . . . . . . . . Unreport Threat 5 | . . . . . . . . 2 1 . . . 2 . . . . . . . . . Locate Traps 1 | . 1 . . . . . . . . . . . . . . . . . . . . . Zone Layout 2 | . . 1 . . . . . . . . . . 1 . . . . . . . . . Garrison Registry 1 | . . . . . . . . . . 1 . . . . . . . . . . . . Security Stations 2 | . . . . . . . 1 . . 1 . . . . . . . . . . . . EX-Prototype ID Bank 1 | . . . . 1 . . . . . . . . . . . . . . . . . . Fabricator Hacks 3 | . . . . . . . . . 1 . 1 . . . 1 . . . . . . . Network Status 3 | . . . . . . . . . 1 . 1 . . . 1 . . . . . . . Repair Station Hacks 1 | . . . . . . 1 . . . . . . . . . . . . . . . . Scan Component 1 | . . . . . . 1 . . . . . . . . . . . . . . . . Recycling Unit Hacks 3 | . . . . . . . . . . . . . . . 3 . . . . . . . Process 1 | . . . . . . . . . . . . . . . 1 . . . . . . . Report Inventory 1 | . . . . . . . . . . . . . . . 1 . . . . . . . Retrieve Matter 1 | . . . . . . . . . . . . . . . 1 . . . . . . . Scanalyzer . | . . . . . . . . . . . . . . . . . . . . . . . Garrison Access Hacks 7 | . . . . . . 1 . . 1 . 1 . 1 . . 1 . 1 . 1 . . Unlock Access 7 | . . . . . . 1 . . 1 . 1 . 1 . . 1 . 1 . 1 . . Unauthorized Hacks 24 | . 2 . . . . 5 . 3 2 . 2 . 3 . 3 . . 3 . 1 . . Terminals 22 | . 2 . . . . 5 . 3 1 . 1 . 3 . 3 . . 3 . 1 . . Assimilate 2 | . . . . . . . . 1 . . . . . . . . . 1 . . . . Botnet 17 | . 2 . . . . 5 . 2 1 . 1 . 2 . 1 . . 2 . 1 . . Detonate 1 | . . . . . . . . . . . . . . . 1 . . . . . . . Operators 2 | . . . . . . . . . . . . . 1 . 1 . . . . . . . Fabricators 2 | . . . . . . . . . 1 . 1 . . . . . . . . . . . Fabnet 2 | . . . . . . . . . 1 . 1 . . . . . . . . . . . Repair Stations . | . . . . . . . . . . . . . . . . . . . . . . . Recycling Units . | . . . . . . . . . . . . . . . . . . . . . . . Scanalyzers . | . . . . . . . . . . . . . . . . . . . . . . . Garrison Access . | . . . . . . . . . . . . . . . . . . . . . . . Data Cores Recovered 1 | . . . . . . 1 . . . . . . . . . . . . . . . . Used . | . . . . . . . . . . . . . . . . . . . . . . . Hacking Detections 51 | . 4 1 . . . 6 2 5 3 1 8 2 6 . 5 2 . 3 . 2 1 . Full Trace Events 8 | . . . . . . 1 1 1 . 1 1 1 . . . 1 . . . . 1 . Feedback Events 2 | . . . . . . . 1 . . . 1 . . . . . . . . . . . Corruption 2 | . . . . . . . 1 . . . 1 . . . . . . . . . . . Feedback Blocked . | . . . . . . . . . . . . . . . . . . . . . . . Robot Schematics Acquired . | . . . . . . . . . . . . . . . . . . . . . . . Robots Built . | . . . . . . . . . . . . . . . . . . . . . . . Authchips . | . . . . . . . . . . . . . . . . . . . . . . . Time . | . . . . . . . . . . . . . . . . . . . . . . . Total Robot Build Rating . | . . . . . . . . . . . . . . . . . . . . . . . Part Schematics Acquired . | . . . . . . . . . . . . . . . . . . . . . . . Parts Built . | . . . . . . . . . . . . . . . . . . . . . . . Authchips . | . . . . . . . . . . . . . . . . . . . . . . . Time . | . . . . . . . . . . . . . . . . . . . . . . . Total Part Build Rating . | . . . . . . . . . . . . . . . . . . . . . . . Parts Repaired . | . . . . . . . . . . . . . . . . . . . . . . . Time . | . . . . . . . . . . . . . . . . . . . . . . . Parts Recycled . | . . . . . . . . . . . . . . . . . . . . . . . Recycled Matter 16 | . . . . . . . . . . . . . . . 16 . . . . . . . Retrieved Matter 16 | . . . . . . . . . . . . . . . 16 . . . . . . . Retrieved Components . | . . . . . . . . . . . . . . . . . . . . . . . Parts Scanalyzed . | . . . . . . . . . . . . . . . . . . . . . . . Part Schematics Acquired . | . . . . . . . . . . . . . . . . . . . . . . . Parts Damaged . | . . . . . . . . . . . . . . . . . . . . . . . Bothacking | -11 -10 -9 -9 -9 -8 -8 -8 -8 -7 -7 -7 -7 -6 -6 -5 -4 -4 -3 -3 -2 -2 -2 ------------ Run | Scr Mat Mat Min Exi Min Mat Gar Mat Fac Gar Fac Gar Fac Gar Fac Fac Gar Res Gar Res Gar Tes Used RIF Installer 5 | . . . . . . . 1 . . 1 . 1 . . . . 2 . . . . . Code Merge 1 | . . . . . . . . . . . . . . . . . 1 . . . . . Threat Obfuscator 1 | . . . . . . . . . . . . . . . . . 1 . . . . . Zone Cloak 1 | . . . . . . . . . . 1 . . . . . . . . . . . . Autooverride 1 | . . . . . . . . . . . . 1 . . . . . . . . . . Robots Hacked 20 | . . . . . . . . . . . 1 1 4 10 1 . 1 . . . 1 1 Non-combat . | . . . . . . . . . . . . . . . . . . . . . . . Combat 20 | . . . . . . . . . . . 1 1 4 10 1 . 1 . . . 1 1 Autooverrided 5 | . . . . . . . . . . . . . 1 1 1 . . . . . 1 1 Robot Hacks Applied 13 | . . . . . . . . . . . 1 1 2 8 . . 1 . . . . . spike_heat 2 | . . . . . . . . . . . . . . 2 . . . . . . . . amplify_resonance 1 | . . . . . . . . . . . . 1 . . . . . . . . . . reboot_system 1 | . . . . . . . . . . . . . . . . . 1 . . . . . overwrite_iff 2 | . . . . . . . . . . . . . 1 1 . . . . . . . . formatsys_high 7 | . . . . . . . . . . . 1 . 1 5 . . . . . . . . Relay Couplers Released 30 | . . . . . . . 3 . . 12 . 3 . 5 . . 3 . . . 4 . Machine Destruction 30 | . . . . . . . 3 . . 12 . 3 . 5 . . 3 . . . 4 . Attached 15 | . . . . . . . . . . 1 2 1 3 3 . . 1 . . . 4 . Fabnet Peak Effective % 6 | . . . . . . . . . . . . . 6 6 2 . . . . . . . Autooverrided 2 | . . . . . . . . . . . . . 1 1 . . . . . . . . Robots Rewired 18 | . . . . . . . 9 . . . . 7 . . . . . . . . 2 . Allies Hacked . | . . . . . . . . . . . . . . . . . . . . . . . Hacks Repelled . | . . . . . . . . . . . . . . . . . . . . . . . Allies | -11 -10 -9 -9 -9 -8 -8 -8 -8 -7 -7 -7 -7 -6 -6 -5 -4 -4 -3 -3 -2 -2 -2 -------- Run | Scr Mat Mat Min Exi Min Mat Gar Mat Fac Gar Fac Gar Fac Gar Fac Fac Gar Res Gar Res Gar Tes Total Allies 41 | . . . . . . . 11 . . 2 1 9 4 8 1 . . 1 . . 3 1 Largest Group 9 | . . . . . . . 6 2 . 2 1 9 2 3 1 . . 1 1 . 2 1 Highest-Rated Group 289 | . . . . . . . 62 62 . 40 90 289 63 70 12 . . 10 10 . 201 58 Highest-Rated Ally 116 | . . . . . . . 31 31 . 20 90 90 43 29 12 . . 10 10 . 116 58 Total Orders 6 | . . . . . . . . . . . . 2 . 2 . . . . . . 2 . STAY 3 | . . . . . . . . . . . . 1 . 1 . . . . . . 1 . FOLLOW 2 | . . . . . . . . . . . . 1 . . . . . . . . 1 . EXPLORE 1 | . . . . . . . . . . . . . . 1 . . . . . . . . Ally Attacks 204 | . . . . . . . 23 9 . 3 12 46 30 47 2 . . . . . 30 2 Total Damage 6113 | . . . . . . . 299 124 . 31 477 1654 1058 348 36 . . . . . 2019 67 Kills 45 | . . . . . . . 4 2 . . 2 15 6 6 2 . . . . . 8 . Allies Corrupted . | . . . . . . . . . . . . . . . . . . . . . . . Allies Melted . | . . . . . . . . . . . . . . . . . . . . . . . Intel | -11 -10 -9 -9 -9 -8 -8 -8 -8 -7 -7 -7 -7 -6 -6 -5 -4 -4 -3 -3 -2 -2 -2 ------- Run | Scr Mat Mat Min Exi Min Mat Gar Mat Fac Gar Fac Gar Fac Gar Fac Fac Gar Res Gar Res Gar Tes Robot Analysis Total . | . . . . . . . . . . . . . . . . . . . . . . . Derelict Logs Recovered . | . . . . . . . . . . . . . . . . . . . . . . . Drone Launches 16 | . . . . . . . . . . . . . . 16 . . . . . . . . Drone Recoveries . | . . . . . . . . . . . . . . . . . . . . . . . Exploration | -11 -10 -9 -9 -9 -8 -8 -8 -8 -7 -7 -7 -7 -6 -6 -5 -4 -4 -3 -3 -2 -2 -2 ------------- Run | Scr Mat Mat Min Exi Min Mat Gar Mat Fac Gar Fac Gar Fac Gar Fac Fac Gar Res Gar Res Gar Tes Turns Passed 20326 | 67 584 112 240 304 130 910 2065 938 757 2087 2513 1338 1187 1303 2032 206 1672 369 165 515 744 88 Spaces Moved 11092 | 52 315 82 154 245 99 578 1212 617 421 793 1428 662 495 504 932 125 707 262 182 675 358 194 Core 456 | 1 . . . . . . . 266 30 . . . . . . . . . . 35 106 18 Treads 1630 | 1 . . . . . . 24 . 391 597 . . . 174 . . 228 . . . 215 . Legs 396 | . . . . . . . . . . . . . . . 1 . 254 141 . . . . Wheels 7305 | 50 315 82 154 245 99 578 1188 351 . 196 1428 662 495 330 931 125 76 . . . . . Hover 1155 | . . . . . . . . . . . . . . . . . 149 121 182 640 37 26 Flight 150 | . . . . . . . . . . . . . . . . . . . . . . 150 Fastest Speed 32 | 50 95 120 120 120 120 110 110 50 50 135 125 135 135 90 105 128 52 52 52 40 40 32 Average Speed 133 | 100 107 120 120 120 120 119 120 103 146 195 148 135 189 173 140 144 162 121 56 48 131 36 Slowest Speed 680 | 160 145 120 120 120 120 125 225 230 161 320 195 140 195 247 230 195 410 260 102 110 680 50 Overloaded Moves . | . . . . . . . . . . . . . . . . . . . . . . . Propulsion Burnouts . | . . . . . . . . . . . . . . . . . . . . . . . Robots Hopped 7 | . . . . . . . . . . . . . . . . . . . . . . 7 Cave-ins Triggered . | . . . . . . . . . . . . . . . . . . . . . . . Exploration Rate (%) 37 | 3 65 12 36 60 26 63 94 56 11 78 39 64 19 38 25 4 47 7 26 28 40 24 Regions Visited 22 Branch Regions 4 Pre-discovered Areas 1 | . . . . 1 . . . . . . . . . . . . . . . . . . Known Exits Taken 7 | . . . . . . 1 . . 1 . 1 . 1 . . 1 . 1 . 1 . . Unknown Exits Taken 8 | 1 1 1 1 1 1 . . 1 . . . . . . 1 . . . . . . . Scrap Searched 1 | . . . 1 . . . . . . . . . . . . . . . . . . . Spaces Dug 149 | . . . . . . 2 11 3 3 1 21 . 7 . 14 . . 2 43 35 7 . Terrain Destroyed 364 | . . . . . . 33 11 19 3 1 26 51 7 4 104 . 3 2 43 50 7 . Melee 58 | . . . . . . 2 11 3 3 1 2 . 7 . 9 . . 2 . 18 . . Projectile 95 | . . . . . . . . 16 . . 5 . . 4 61 . 2 . . . 7 . AOE 211 | . . . . . . 31 . . . . 19 51 . . 34 . 1 . 43 32 . . Terrain Rammed . | . . . . . . . . . . . . . . . . . . . . . . . Walls Destroyed . | . . . . . . . . . . . . . . . . . . . . . . . Machines Disabled . | . . . . . . . . . . . . . . . . . . . . . . . Actions | -11 -10 -9 -9 -9 -8 -8 -8 -8 -7 -7 -7 -7 -6 -6 -5 -4 -4 -3 -3 -2 -2 -2 --------- Run | Scr Mat Mat Min Exi Min Mat Gar Mat Fac Gar Fac Gar Fac Gar Fac Fac Gar Res Gar Res Gar Tes Total 14986 | 63 460 97 182 257 105 759 1642 826 531 1145 1695 950 637 798 1451 141 1065 308 241 814 616 203 Wait 1801 | . 78 1 5 . . 93 169 137 64 115 109 57 39 121 348 4 160 8 54 71 163 5 Move 11063 | 51 314 81 153 244 98 578 1211 616 421 792 1428 661 495 503 931 125 706 262 181 675 357 180 Hop 7 | . . . . . . . . . . . . . . . . . . . . . . 7 Pick Up 221 | 6 8 4 8 5 1 16 8 12 4 35 16 11 13 14 21 3 17 9 . 7 2 1 Fast Attach 170 | 6 1 2 . 1 . 6 . 3 14 16 17 6 5 7 13 2 38 7 . 9 12 5 Attach 131 | . 2 3 2 . . 3 11 8 3 15 11 5 6 10 17 1 11 3 1 12 6 1 Detach 57 | . . 3 . . . 1 1 . 1 12 11 2 3 3 5 . 3 . 1 3 7 1 Swap 126 | . 4 . . 1 1 8 20 4 . 5 11 19 10 11 9 2 14 2 1 3 1 . Drop 168 | . 3 3 1 6 2 24 3 2 6 16 13 19 10 14 4 . 18 13 1 3 4 3 Fire 668 | . 50 . 13 . 3 28 75 41 . . 58 41 49 86 94 4 64 . 2 8 52 . Melee 305 | . . . . . . 2 31 3 18 115 5 50 7 6 9 . 32 4 . 23 . . Ram . | . . . . . . . . . . . . . . . . . . . . . . . Kick . | . . . . . . . . . . . . . . . . . . . . . . . Crush 10 | . . . . . . . . . . 2 . . . 8 . . . . . . . . Escape Stasis 167 | . . . . . . . 60 . . 22 16 40 . 15 . . 2 . . . 12 . Rewire 92 | . . . . . . . 53 . . . . 39 . . . . . . . . . . Trap . | . . . . . . . . . . . . . . . . . . . . . . . Miscellaneous . | . . . . . . . . . . . . . . . . . . . . . . . Route ------- -11/Scrapyard -10/Materials (discovered 2 exits: *Mat / *Min) -9/Materials -9/Mines (discovered 2 exits: *Mat / *Exi) -9/Exiles -8/Mines -8/Materials (discovered 3 exits: *Fac x2 / Gar) -8/Garrison (discovered 4 exits: *Mat x4) -8/Materials -7/Factory -7/Garrison (discovered 3 exits: *Fac x3) -7/Factory (discovered 3 exits: *Fac / [*Sto] / Gar) -7/Garrison -6/Factory -6/Garrison -5/Factory -4/Factory -4/Garrison -3/Research -3/Garrison -2/Research -2/Garrison -2/Testing History --------- Turn | Location | Event 25 | -11/Scrapyard | Discovered new exit (range 16) 68 | -11/Scrapyard | Entered Materials 109 | -10/Materials | Identified exit to Mines 305 | -10/Materials | Build established: Mutant 601 | -10/Materials | Discovered new exit (range 3) 652 | -10/Materials | Entered another Materials area 652 | -9/Materials | Evolved 2 slots: Propulsion x1, Weapon x1 743 | -9/Materials | Discovered new exit (range 16) 764 | -9/Materials | Entered Mines 765 | -9/Mines | Assembled infested the area 850 | -9/Mines | Discovered new exit (range 15) 851 | -9/Mines | A weapon hastily lodged in a ceiling crevice suddenly fell to the ground 872 | -9/Mines | Found the Drone Emporium 881 | -9/Mines | Found Prototype Device 950 | -9/Mines | Build established: Gunner 999 | -9/Mines | Deemed a non-threat by the Exiles lab entrance 999 | -9/Mines | Discovered new exit (range 5) 1004 | -9/Mines | Entered Exiles 1039 | -9/Exiles | Met 8R-AWN 1059 | -9/Exiles | Met EX-HEX 1091 | -9/Exiles | Met EX-BIN 1106 | -9/Exiles | Aligned with FarCom system 1107 | -9/Exiles | Given EX-Vault access code 1135 | -9/Exiles | Opened EX-Vault 1143 | -9/Exiles | Found Gui. Plasma Cannon 1158 | -9/Exiles | Found Longsword +1 1185 | -9/Exiles | Warned to stay clear of 0b10 Research branches 1219 | -9/Exiles | Met EX-DEC 1235 | -9/Exiles | Learned location of Zion (-7) 1296 | -9/Exiles | Discovered new exit (range 12) 1308 | -9/Exiles | Left Exiles lab with Longsword +1 1308 | -9/Exiles | Entered Mines 1430 | -8/Mines | Discovered new exit (range 6) 1438 | -8/Mines | Entered Materials 1438 | -8/Materials | Evolved 2 slots: Utility x2 1438 | -8/Materials | Identified Bomb Drone Bay 1604 | -8/Materials | Build established: Skirmisher 1801 | -8/Materials | Discovered new exit (range 11) 2033 | -8/Materials | Discovered new exit (range 15) 2348 | -8/Materials | Identified exit to Garrison 2348 | -8/Materials | Entered Garrison 2363 | -8/Garrison | Learned Materials security intel 2437 | -8/Garrison | Lost 3 parts (2n1u) 2511 | -8/Garrison | Triggered checkpoint 2991 | -8/Garrison | Triggered checkpoint 3124 | -8/Garrison | Discovered new exit (range 13) 3160 | -8/Garrison | Triggered checkpoint 3193 | -8/Garrison | Discovered new exit (range 5) 3272 | -8/Garrison | Triggered checkpoint 3284 | -8/Garrison | Triggered checkpoint 3351 | -8/Garrison | Triggered checkpoint 3428 | -8/Garrison | Discovered new exit (range 13) 3482 | -8/Garrison | Triggered checkpoint 3635 | -8/Garrison | Triggered checkpoint 3651 | -8/Garrison | Triggered checkpoint 3742 | -8/Garrison | Triggered checkpoint 3757 | -8/Garrison | Garrison Relay disabled 3775 | -8/Garrison | Discovered new exit (range 10) 3890 | -8/Garrison | Core integrity fell below 50% 3892 | -8/Garrison | Spotted B-75 Beast 3978 | -8/Garrison | Destroyed B-75 Beast 4109 | -8/Garrison | Rescued a captive Derelict 4111 | -8/Garrison | Rescued a captive Derelict 4307 | -8/Garrison | Installed Relay Interface Framework 4388 | -8/Garrison | Build established: Mutant 4413 | -8/Garrison | Entered Materials 4413 | -8/Materials | Accompanied by 2 allies 4739 | -8/Materials | Discovered new exit (range 8) 4798 | -8/Materials | Build established: Skirmisher 4813 | -8/Materials | First assault squad dispatched 4890 | -8/Materials | Lost 4 parts (1p2n1w) 5195 | -8/Materials | Core integrity fell below 20% 5203 | -8/Materials | Released all parts (6) 5233 | -8/Materials | Lost 7 parts (3n1u3w) 5351 | -8/Materials | Entered Factory 5351 | -7/Factory | Evolved 2 slots: Propulsion x1, Utility x1 5486 | -7/Factory | Build established: Mutant 6108 | -7/Factory | Identified exit to Garrison 6108 | -7/Factory | Entered Garrison 6342 | -7/Garrison | Triggered checkpoint 6385 | -7/Garrison | Garrison Relay disabled 6433 | -7/Garrison | Garrison Relay disabled 6440 | -7/Garrison | Build established: Hauler-Mutant 6546 | -7/Garrison | Triggered checkpoint 6713 | -7/Garrison | Rescued a captive Derelict 6713 | -7/Garrison | Rescued a captive Derelict 6758 | -7/Garrison | Triggered checkpoint 7092 | -7/Garrison | Triggered checkpoint 7244 | -7/Garrison | Discovered new exit (range 10) 7322 | -7/Garrison | Triggered checkpoint 7372 | -7/Garrison | Garrison Relay disabled 7600 | -7/Garrison | Discovered new exit (range 53) 7600 | -7/Garrison | Discovered new exit (range 74) 7600 | -7/Garrison | Discovered new exit (range 57) 8131 | -7/Garrison | Expanded RIF knowledge: Zone Cloak 8153 | -7/Garrison | Build established: Scavenger-Mutant 8188 | -7/Garrison | Learned Factory security intel 8195 | -7/Garrison | Entered Factory 8673 | -7/Factory | Build established: Bothacker-Mutant 8759 | -7/Factory | Core integrity fell below 50% 8995 | -7/Factory | Discovered new exit (range 6) 9279 | -7/Factory | Build established: Bothacker-Skirmisher 9734 | -7/Factory | Lost 4 parts (2n2w) 9989 | -7/Factory | Build established: Bothacker-Mutant 10019 | -7/Factory | Discovered new exit (range 14) 10625 | -7/Factory | Build established: Bothacker-Skirmisher 10708 | -7/Factory | Identified exit to Garrison 10708 | -7/Factory | Entered Garrison 10708 | -7/Garrison | Accompanied by 1 ally 11001 | -7/Garrison | Build established: Bothacker-Mutant 11154 | -7/Garrison | Triggered checkpoint 11383 | -7/Garrison | Build established: Bothacker-Skirmisher 11443 | -7/Garrison | Core integrity fell below 20% 11471 | -7/Garrison | Phase Generator disabled 11571 | -7/Garrison | Rescued a captive Derelict 11573 | -7/Garrison | Rescued a captive Derelict 11738 | -7/Garrison | Triggered checkpoint 11806 | -7/Garrison | Discovered new exit (range 12) 11849 | -7/Garrison | Garrison Relay disabled 12007 | -7/Garrison | Expanded RIF knowledge: Autooverride 12046 | -7/Garrison | Entered Factory 12046 | -6/Factory | Accompanied by 2 allies 12046 | -6/Factory | Evolved 2 slots: Utility x2 12286 | -6/Factory | Build established: Bothacker-Mutant 12396 | -6/Factory | First assault squad dispatched 13233 | -6/Factory | Identified exit to Garrison 13233 | -6/Factory | Entered Garrison 13266 | -6/Garrison | Triggered checkpoint 13299 | -6/Garrison | Garrison Relay disabled 13515 | -6/Garrison | Spotted B-75 Beast 13518 | -6/Garrison | Triggered checkpoint 13621 | -6/Garrison | Destroyed B-75 Beast 13812 | -6/Garrison | Triggered checkpoint 13823 | -6/Garrison | Assembled breached garrison interior 14159 | -6/Garrison | Lost 9 parts (2n6u1w) 14216 | -6/Garrison | Destroyed 11 combat bots 14310 | -6/Garrison | Discovered new exit (range 8) 14536 | -6/Garrison | Entered Factory 14536 | -5/Factory | Evolved 2 slots: Utility x2 14585 | -5/Factory | Build established: Scavenger-Mutant 16022 | -5/Factory | Lost 6 parts (1p3n1u1w) 16286 | -5/Factory | Lost 3 parts (2n1w) 16350 | -5/Factory | Discovered new exit (range 9) 16504 | -5/Factory | Lost 12 parts (6n4u2w) 16568 | -5/Factory | Entered another Factory area 16568 | -4/Factory | Evolved 2 slots: Propulsion x1, Utility x1 16690 | -4/Factory | Lost 3 parts (1n2w) 16774 | -4/Factory | Identified exit to Garrison 16774 | -4/Factory | Entered Garrison 16798 | -4/Garrison | Expanded RIF knowledge: Threat Obfuscation 16918 | -4/Garrison | Triggered checkpoint 16973 | -4/Garrison | Build established: Scavenger-Skirmisher 17057 | -4/Garrison | Lost 4 parts (1n1u2w) 17137 | -4/Garrison | Expanded RIF knowledge: Code Merge 17196 | -4/Garrison | Phase Generator disabled 17359 | -4/Garrison | Build established: Scavenger-Mutant 17388 | -4/Garrison | Lost 4 parts (2n2w) 17535 | -4/Garrison | Garrison Relay disabled 17903 | -4/Garrison | Lost 5 parts (1p2n2u) 18030 | -4/Garrison | Triggered checkpoint 18030 | -4/Garrison | Spotted B-86 Titan 18368 | -4/Garrison | Destroyed B-86 Titan 18380 | -4/Garrison | Lost 6 parts (1p1n2u2w) 18390 | -4/Garrison | Triggered checkpoint 18433 | -4/Garrison | Discovered new exit (range 10) 18446 | -4/Garrison | Entered Research 18446 | -3/Research | Evolved 2 slots: Power x1, Propulsion x1 18815 | -3/Research | Identified exit to Garrison 18815 | -3/Research | Entered Garrison 18815 | -3/Garrison | Accompanied by 1 ally 18932 | -3/Garrison | Spotted Striker 18966 | -3/Garrison | Triggered checkpoint 18974 | -3/Garrison | Discovered new exit (range 11) 18980 | -3/Garrison | Entered Research 18980 | -2/Research | Evolved 2 slots: Propulsion x2 19348 | -2/Research | Lost 3 parts (1u2w) 19458 | -2/Research | Spotted B-90 Cyclops 19465 | -2/Research | Released all parts (5) 19471 | -2/Research | Spotted B-90 Cyclops 19480 | -2/Research | Search patrols dispatched 19495 | -2/Research | Lost 18 parts (2p9n5u2w) 19495 | -2/Research | Identified exit to Garrison 19495 | -2/Research | Entered Garrison 19498 | -2/Garrison | Spotted B-86 Titan 19500 | -2/Garrison | Rewired B-75 Beast 19504 | -2/Garrison | Destroyed 7 combat bots 19505 | -2/Garrison | Rewired B-86 Titan 19542 | -2/Garrison | Allies destroyed B-86 Titan 19583 | -2/Garrison | Build established: Mutant 19648 | -2/Garrison | Found Quantum Capacitor 19905 | -2/Garrison | Build established: Scavenger-Mutant 19906 | -2/Garrison | Allies destroyed Beast 9a 19956 | -2/Garrison | Triggered checkpoint 20069 | -2/Garrison | Garrison Relay disabled 20153 | -2/Garrison | Core integrity fell below 50% 20202 | -2/Garrison | Spotted B-90 Cyclops 20213 | -2/Garrison | Core integrity fell below 20% 20233 | -2/Garrison | Discovered new exit (range 12) 20239 | -2/Garrison | Lost 8 parts (4n3u1w) 20239 | -2/Garrison | Entered Testing 20240 | -2/Testing | Maximum security lockdown engaged 20327 | -2/Testing | Destroyed by S-43 Plague with Heavy Machine Gun Last Messages --------------- 20265_ Dropped Cld. Antigrav System. 20266_ Acquired Prototype Flight Unit. 20266_ Identified Electron Diverter. 20270_ F,1CMQC/AZ<9G&1Q5 Z4ONJVL01, 20274_ C-30 ARC bursts open, deploying its payload. 20274_ G-73 Enforcer unfolds itself. 20275_ Detecting nearby Garrison Access. 20284_ RIF automatically rewrites G-73 Enforcer IFF filter. 20289_ Acquired Electron Diverter. 20290_ Terminal disabled. 20291_ Acquired 40 matter. 20300_ W-44 Eye sends out distress signal. 20302_ System corrupted: Energy discharge (-15). 20303_ Acquired Lgt. Quantum Reactor. 20305_ Dropped Hardcell Cannon. 20307_ Acquired Enh. Nova Cannon. 20317_ O-32 Director: "IFF HANDSHAKE FAILED. SECURING TERMINAL." 20322_ C-30 ARC bursts open, deploying its payload. 20322_ S-43 Plague unfolds itself. 20326_ System corrupted: Matter fused (-6). Map ----- +----------------------------------------------------+ | ?????????# """ + #?????????????????????????? | | ?????????# "" # #?????????????????????????? | | ?????????# # #???####??????????????????? | | ?????????# ] # #?? ??????????????????? | | ?????????# = # #?? """ ??????????????????? | | ?????????#####+#### #? """ ??????????????????? | | ???????????### #### #? """ "?????????????????? | | ?????????### # """ "?????????????????? | | ?????????#"" # """ """???????????????? | | ?????????#"" w #????????????? | | ?????????#"T """"""" # #????????????? | | ?????????#"" """"""" # #????????????? | | ?????????#"" """"""" #? #????????????? | | ????####+### #? #????????????? | | ????# """ #?? #????????????? | | ????# """ #??###########????????????? | | ????# """ ###???????????????????????? | | ????# ""#???????????????????????? | | ????# """"""" g""#???????????????????????? | | ????# """""""s T"#???????????????????????? | | ????# """""""g ""#???????????????????????? | | ????+ s s ""#???????????????????????? | | ????# o ! ####??????????????????????? | | ????# % u #??????????????????????? | | ????# #??????????????????????? | | ????##########""" """# @#??????????????????????? | | ?????????????#"""T"""# +??????????????????????? | | ?????????????######### #??????????????????????? | | ?????????????????????# #??????????????????????? | | ?????????????????????# #??????????????????????? | | ????????????????????? ??????????????????????? | | ???????????????????? ??????????????????????? | | ??????????????????? ?????????????????????? | | ?????????????????? ?????????????????????? | | ????????????????? ### ###????????????????????? | | ???????????????? ??# #??????????????????????? | | ??????????????? ???#u #??????????????????????? | | ???????????????? ????# #????????p?????????????? | | ?????????????????????#A ???????????????????????? | | ?????????????????????# ???????????????????????? | | ??????????????????????? ???????????????????????? | | ?????????????????????????????????????????????????? | | ?????????????????????????????????????????????????? | | ?????????????????????????????????????????????????? | | ?????????????????????????????????????????????????? | | ?????????????????????????????????????????????????? | | ?????????????????????????????????????????????????? | | ?????????????????????????????????????????????????? | | ?????????????????????????????????????????????????? | | ?????????????????????????????????????????????????? | +----------------------------------------------------+ Best States ------------- Heat Dissipation 141 Coolant Potential 80 Energy Generation 43 Energy Capacity 590 Matter Stores 300 Matter Capacity 300 Sight Range 16 Terrain Scan Density 110 Additional Mass Support 12 EM Shielding 2 Armor Coverage 600 Resistance: EM 25 Core Shielding 30 Phase Shifting 10 Evasion (%) 65 Targeting Accuracy 8 Melee Accuracy 6 Target Analysis 6 Core Analysis 6 Recoil Reduction 4 Energy Filtering 30 Kinecelleration 30 Salvage Targeting 3 Offensive Hacking 12 Relay Coupler Types 4 Relay Coupler Value 111 Item Schematics ----------------- None Robot Schematics ------------------ None Fabricated ------------ Nothing Alien Tech Used ----------------- None Achievements -------------- None Challenges ------------ None Game ------ Seed MyomerDroneDrive Manual? 0 Play Time 03:23:33 Cumulative 286.8 hours Start 2022.07.17 @ 18:09:52 End 2022.07.26 @ 21:04:26 Sessions 4 Manual Loads 0 Difficulty Rogue Special Mode None Game No. 190 Rogue 190 Adventurer 0 Explorer 0 Win Type - Total 16 Types 13/0/2/1/0/0/0/0/0 Lore% 67 Gallery% 83 Achievement% 64 Wizard Run 0 Options --------- ASCII 0 Keyboard 1 Movement Numpad Keybinds 0 Fullscreen 2 Font 18/SmallcapsGlow Map View 112x50 Tactical HUD 1 Map Filters NONE Filters NONE Steam 1 RUN: 78d2b259-1f45-49f0-8192-7b82ae3d24fb